bitfinex/quotes_BTCUSD_20250714
["timestamp","ask_amount","ask_price","bid_price","bid_amount"]
[1752452071224,0.90245748,118960.0,118950.0,0.69773022]
[1752452076082,0.90245748,118960.0,118950.0,0.72793022]
[1752452076609,0.89943748,118960.0,118950.0,0.72992022]
[1752452077545,0.89943748,118960.0,118950.0,0.73317022]
[1752452078788,0.89730748,118960.0,118950.0,0.73317022]
[1752452078998,0.4400837,118960.0,118950.0,0.73317022]
[1752452079211,0.4400837,118960.0,118950.0,0.96178211]
[1752452079419,0.4400837,118960.0,118950.0,1.04721204]
[1752452079646,0.4400837,118960.0,118950.0,1.27582393]
[1752452079879,0.1000837,118960.0,118950.0,1.04721204]
[1752452080509,0.1000837,118960.0,118950.0,1.04521204]
[1752452080722,0.1000837,118960.0,118950.0,1.04421204]
[1752452080928,0.1000837,118960.0,118950.0,1.04921204]
[1752452081355,0.1000837,118960.0,118950.0,1.15393204]
[1752452082763,0.56861189,118970.0,118960.0,0.26076652]
[1752452082981,0.56861189,118970.0,118960.0,0.47574645]
[1752452082982,0.34,118970.0,118960.0,0.47574645]
[1752452083178,0.56861189,118970.0,118960.0,0.47899645]
[1752452083402,0.59284887,118970.0,118960.0,0.47899645]
[1752452083969,0.59284887,118970.0,118960.0,0.47999645]
[1752452084183,0.59284887,118970.0,118960.0,0.48099645]
[1752452085808,0.56861189,118970.0,118960.0,0.48099645]
[1752452087089,0.59310668,118970.0,118960.0,0.48099645]
[1752452088929,0.59518668,118970.0,118960.0,0.48099645]
[1752452089155,0.59310668,118970.0,118960.0,0.48099645]
[1752452090049,0.20272843,122710.0,118960.0,0.48099645]
[1752452090275,0.22861189,118980.0,118970.0,0.18986]
[1752452090508,0.23069189,118980.0,118970.0,0.38542652]
[1752452090717,0.25514615,118980.0,118970.0,0.38542652]
[1752452091169,0.00208,118980.0,118970.0,0.38542652]
[1752452091382,0.23069189,118980.0,118970.0,0.38867652]
[1752452092069,0.23069189,118980.0,118970.0,0.39066652]
[1752452093693,0.34,118980.0,118970.0,0.36824652]
[1752452093922,0.34,118980.0,118970.0,0.59685841]
[1752452094351,0.34,118980.0,118970.0,0.65745841]
[1752452094768,0.02411591,118980.0,118970.0,0.65745841]
[1752452094996,8.369e-05,119000.0,118990.0,0.10248]
[1752452095206,0.57067558,119000.0,118990.0,0.23004]
[1752452095629,0.34206369,119000.0,118990.0,0.45865189]
[1752452095771,0.34206369,119000.0,118990.0,0.66001189]
[1752452095980,0.34206369,119000.0,118990.0,0.66525189]
[1752452096931,0.34008369,119000.0,118990.0,0.74114895]
[1752452097372,0.34008369,119000.0,118990.0,0.93671547]
[1752452098867,0.34008369,119000.0,118990.0,0.93771547]
[1752452099065,0.34208369,119000.0,118990.0,0.93771547]
[1752452099267,0.36478341,119000.0,118990.0,0.93771547]
[1752452099640,0.36478341,119000.0,118990.0,0.93871547]
[1752452100510,8.369e-05,119000.0,118990.0,0.93871547]
[1752452101242,0.02516827,119000.0,118990.0,0.93871547]
[1752452101465,8.369e-05,119000.0,118990.0,0.93871547]
[1752452101641,8.369e-05,119000.0,118990.0,1.0241454]
[1752452101848,8.369e-05,119000.0,118990.0,1.82015435]
[1752452102004,8.369e-05,119000.0,118990.0,1.84498253]
[1752452102206,8.369e-05,119000.0,118990.0,1.54047358]
[1752452102872,8.369e-05,119000.0,118990.0,1.53947358]
[1752452103276,8.369e-05,119000.0,118990.0,1.54147358]
[1752452103648,8.369e-05,119000.0,118990.0,1.84598253]
[1752452104447,8.369e-05,119000.0,118990.0,1.89498253]
[1752452104884,0.0002,119030.0,119020.0,0.40548895]
[1752452105114,0.00069762,119030.0,119020.0,0.9435354]
[1752452105331,0.00069762,119030.0,119020.0,0.9466354]
[1752452105773,0.02504939,119030.0,119020.0,0.9466354]
[1752452108611,0.02704939,119030.0,119020.0,0.9466354]
[1752452109273,0.02704939,119030.0,119020.0,0.64212645]
[1752452109482,0.02704939,119030.0,119020.0,0.9466354]
[1752452114776,0.00269762,119030.0,119020.0,0.9466354]
[1752452115843,0.00069762,119030.0,119020.0,0.9466354]
[1752452116070,0.00169762,119030.0,119020.0,0.9466354]
[1752452116271,0.02599404,119030.0,119020.0,0.9466354]
[1752452116592,0.00169762,119030.0,119020.0,0.9466354]
[1752452118087,0.00169762,119030.0,119020.0,0.34720645]
[1752452118325,0.00367762,119030.0,119020.0,0.42712652]
[1752452118547,0.00169762,119030.0,119020.0,0.73364547]
[1752452120108,0.02676051,119030.0,119020.0,0.73364547]
[1752452121376,0.33543946,119030.0,119020.0,0.23544652]
[1752452121593,0.33543946,119030.0,119020.0,0.36292652]
[1752452121825,0.42086939,119030.0,119020.0,0.36292652]
[1752452122037,0.76086939,119030.0,119020.0,0.36292652]
[1752452122248,0.77651391,119030.0,119020.0,0.23544652]
[1752452122470,0.47983022,119030.0,119020.0,0.36292652]
[1752452122689,0.47201098,119030.0,119020.0,0.36292652]
[1752452122904,0.47983634,119030.0,119020.0,0.36292652]
[1752452123143,0.47983634,119030.0,119020.0,0.23544652]
[1752452123353,0.47983634,119030.0,119020.0,0.36292652]
[1752452123740,0.78434529,119030.0,119020.0,0.36292652]
[1752452124372,0.47983634,119030.0,119020.0,0.36292652]
[1752452124581,0.78434529,119030.0,119020.0,0.36292652]
[1752452127433,0.79888614,119030.0,119020.0,0.12748]
[1752452127647,0.79891435,119030.0,119020.0,0.16736]
[1752452128299,0.79383435,119030.0,119020.0,0.16736]
[1752452130542,0.47481193,119030.0,119020.0,0.16736]
[1752452131001,0.77932088,119030.0,119020.0,0.16736]
[1752452133004,0.77932088,119030.0,119020.0,0.36292652]
[1752452133415,0.77931922,119030.0,119020.0,0.36292652]
[1752452134530,0.79386007,119030.0,119020.0,0.19556652]
[1752452134744,0.01454085,119020.0,119010.0,0.03988]
[1752452134963,0.42214573,119020.0,119010.0,0.16736]
[1752452135187,0.42432573,119020.0,119010.0,0.16736]
[1752452136787,0.43216652,119020.0,119010.0,0.16736]
[1752452137031,0.45795342,119020.0,119010.0,0.16736]
[1752452138168,0.45011263,119020.0,119010.0,0.16736]
[1752452138380,0.45211263,119020.0,119010.0,0.16736]
[1752452139341,0.45209916,119020.0,119010.0,0.16736]
[1752452142290,0.45209591,119020.0,119010.0,0.16736]
[1752452144896,0.45209528,119020.0,119010.0,0.16736]
[1752452145114,0.45209528,119020.0,119010.0,0.12748]
[1752452145756,0.79209528,119020.0,119010.0,0.12748]
[1752452146180,0.81729028,119020.0,119010.0,0.12748]
[1752452147089,0.82512578,119020.0,119010.0,0.12748]
[1752452147621,0.81729028,119020.0,119010.0,0.12748]
[1752452147836,0.81729346,119020.0,119010.0,0.12748]
[1752452148318,0.81729487,119020.0,119010.0,0.12748]
[1752452148660,0.81729504,119020.0,119010.0,0.12748]
[1752452149265,0.82513319,119020.0,119010.0,0.12748]
[1752452149690,0.81729504,119020.0,119010.0,0.12748]
[1752452150080,0.82513524,119020.0,119010.0,0.12748]
[1752452150485,0.81729504,119020.0,119010.0,0.12748]
[1752452150926,0.82513521,119020.0,119010.0,0.12748]
[1752452151132,0.82513803,119020.0,119010.0,0.12748]
[1752452151715,0.82515019,119020.0,119010.0,0.12748]
[1752452153575,0.82515019,119020.0,119010.0,0.15808]
[1752452153795,0.82515228,119020.0,119010.0,0.12748]
[1752452156455,0.81730873,119020.0,119010.0,0.12748]
[1752452156660,0.82515948,119020.0,119010.0,0.12748]
[1752452157482,0.82516064,119020.0,119010.0,0.12748]
[1752452159552,0.82516217,119020.0,119010.0,0.12748]
[1752452159784,0.82484417,119020.0,119010.0,0.12748]
[1752452161649,0.82484417,119020.0,119010.0,0.12752]
[1752452161868,0.01454085,119000.0,118990.0,0.56096]
[1752452162077,0.71097868,119000.0,118990.0,0.43266]
[1752452162308,0.4221712,119000.0,118990.0,0.43266]
[1752452163885,0.11766225,119000.0,118990.0,0.43266]
[1752452164087,0.4221712,119000.0,118990.0,0.43781]
[1752452164488,0.42217923,119000.0,118990.0,0.43781]
[1752452165096,0.42217863,119000.0,118990.0,0.43781]
[1752452166385,0.42217863,119000.0,118990.0,0.43266]
[1752452168670,0.42173892,119000.0,118990.0,0.43266]
[1752452171293,0.42173892,119000.0,118990.0,0.43584]
[1752452173168,0.40603002,119000.0,118990.0,0.30832]
[1752452173387,0.42175009,119000.0,118990.0,0.43266]
[1752452174294,0.7284396,119000.0,118990.0,0.39278]
[1752452174504,0.73629958,119000.0,118990.0,0.39278]
[1752452175153,0.7284396,119000.0,118990.0,0.39278]
[1752452175569,0.7262596,119000.0,118990.0,0.39278]
[1752452176243,0.1172417,119000.0,118990.0,0.39278]
[1752452176459,0.42175065,119000.0,118990.0,0.39278]
[1752452182110,0.40603002,119000.0,118990.0,0.39278]
[1752452182319,0.4217473,119000.0,118990.0,0.39278]
[1752452185309,1.06843625,119000.0,118990.0,0.20136]
[1752452185571,1.06843625,119000.0,118990.0,0.32888]
[1752452186034,1.09363525,119000.0,118990.0,0.32888]
[1752452186789,0.7869463,119000.0,118990.0,0.39028]
[1752452187011,0.7879463,119000.0,118990.0,0.39028]
[1752452187923,0.78794586,119000.0,118990.0,0.39028]
[1752452190952,0.78794711,119000.0,118990.0,0.39028]
[1752452191370,0.78794711,119000.0,118990.0,0.43532]
[1752452191371,0.78595711,119000.0,118990.0,0.43532]
[1752452192300,0.48144816,119000.0,118990.0,0.43532]
[1752452192535,0.78595711,119000.0,118990.0,0.43532]
[1752452196239,0.45624916,119000.0,118990.0,0.43532]
[1752452196439,0.4566904,119000.0,118990.0,0.43532]
[1752452197276,0.76119935,119000.0,118990.0,0.43532]
[1752452197448,0.76119935,119000.0,118990.0,0.39544]
[1752452197779,0.76119935,119000.0,118990.0,0.43532]
[1752452199460,0.74547973,119000.0,118990.0,0.43532]
[1752452199673,0.76120409,119000.0,118990.0,0.43532]
[1752452200296,0.76120409,119000.0,118990.0,0.39544]
[1752452200523,0.76120409,119000.0,118990.0,0.43532]
[1752452204972,0.76120409,119000.0,118990.0,0.39544]
[1752452205397,0.76120409,119000.0,118990.0,0.43532]
[1752452205607,0.76120409,119000.0,118990.0,0.39544]
[1752452205819,0.76120409,119000.0,118990.0,0.43532]
[1752452206230,0.76120409,119000.0,118990.0,0.39544]
[1752452206472,0.76120409,119000.0,118990.0,0.43532]
[1752452206670,0.74666324,119000.0,118990.0,0.39544]
[1752452206882,0.74666324,119000.0,118990.0,0.43532]
[1752452207139,0.76317409,119000.0,118990.0,0.43016]
[1752452207558,0.78837109,119000.0,118990.0,0.43532]
[1752452208036,0.78837109,119000.0,118990.0,0.26276]
[1752452208253,1.09507279,119000.0,118990.0,0.32888]
[1752452208462,1.09507279,119000.0,118990.0,0.35928]
[1752452208668,0.79056384,119000.0,118990.0,0.35928]
[1752452209704,1.09507279,119000.0,118990.0,0.32888]
[1752452210576,1.09507279,119000.0,118990.0,0.2014]
[1752452210821,1.34507279,119000.0,118990.0,0.2014]
[1752452211048,1.34507279,119000.0,118950.0,0.0325]
[1752452211049,0.35454085,118970.0,118950.0,0.0325]
[1752452211265,0.01454085,118950.0,118940.0,0.0608]
[1752452211481,0.40644973,118950.0,118940.0,0.05240885]
[1752452211696,0.40644973,118950.0,118940.0,0.18000885]
[1752452212381,0.42217288,118950.0,118940.0,0.18000885]
[1752452212580,0.40644973,118950.0,118940.0,0.18050647]
[1752452213036,0.40644973,118950.0,118940.0,0.17211134]
[1752452213248,0.74863973,118950.0,118940.0,0.15889762]
[1752452213428,0.74863973,118950.0,118940.0,0.12809762]
[1752452213892,0.74863973,118950.0,118930.0,0.24431]
[1752452214112,0.40447973,118940.0,118930.0,0.24136369]
[1752452214322,0.40644973,118940.0,118930.0,0.24136369]
[1752452215201,0.40644973,118940.0,118930.0,0.36892369]
[1752452215412,0.43175854,118940.0,118930.0,0.36892369]
[1752452215621,0.43175854,118940.0,118930.0,0.37408369]
[1752452215848,0.15918625,118940.0,118930.0,0.37408369]
[1752452216054,0.1446454,118940.0,118930.0,0.40538369]
[1752452216262,0.1456454,118940.0,118930.0,0.40538369]
[1752452216688,0.1456454,118940.0,118930.0,0.43638369]
[1752452218194,0.1456454,118940.0,118930.0,0.74089264]
[1752452218195,0.12033659,118940.0,118930.0,0.74089264]
[1752452218419,0.46033659,118940.0,118930.0,0.74089264]
[1752452218821,0.03490666,118940.0,118930.0,1.03659264]
[1752452222061,0.03490666,118940.0,118930.0,1.03859264]
[1752452222744,0.03490666,118940.0,118930.0,0.69420369]
[1752452222948,0.03490666,118940.0,118930.0,1.03859264]
[1752452223362,0.03390666,118940.0,118930.0,1.03859264]
[1752452223610,0.03390666,118940.0,118930.0,1.04059264]
[1752452223816,0.34,118950.0,118940.0,0.0625]
[1752452224015,0.42542993,118950.0,118940.0,0.06447]
[1752452224246,0.42542993,118950.0,118940.0,0.06772]
[1752452224479,0.45895703,118950.0,118940.0,0.06772]
[1752452225212,0.45895703,118950.0,118940.0,0.06872]
[1752452225456,0.45895703,118950.0,118940.0,0.06972]
[1752452225701,0.45895703,118950.0,118940.0,0.37422895]
[1752452225909,0.3735271,118950.0,118940.0,0.54174895]
[1752452226099,0.0335271,118950.0,118940.0,0.54174895]
[1752452226455,0.37019056,118970.0,118960.0,0.10458]
[1752452226766,0.48941263,118970.0,118960.0,0.23752]
[1752452227965,0.49141263,118970.0,118960.0,0.23752]
[1752452228699,0.49241263,118970.0,118960.0,0.23752]
[1752452228927,0.47787178,118970.0,118960.0,0.23752]
[1752452233152,0.47787178,118970.0,118960.0,0.54202895]
[1752452233368,0.46222207,118970.0,118960.0,0.54202895]
[1752452233580,0.46222207,118970.0,118960.0,0.83772895]
[1752452234347,0.46222207,118970.0,118960.0,0.53322]
[1752452235298,0.47789115,118970.0,118960.0,0.53322]
[1752452235502,0.47789438,118970.0,118960.0,0.83772895]
[1752452235931,0.46222207,118970.0,118960.0,0.83772895]
[1752452237645,0.37679214,118970.0,118960.0,0.83772895]
[1752452237819,0.37579214,118970.0,118960.0,0.83772895]
[1752452238233,0.37579214,118970.0,118960.0,0.83872895]
[1752452238440,0.03579214,118970.0,118960.0,0.83872895]
[1752452239036,0.03379214,118970.0,118960.0,0.83872895]
[1752452239407,0.34,118980.0,118970.0,0.10428]
[1752452239617,0.34,118980.0,118970.0,0.41400895]
[1752452239618,0.42542993,118980.0,118970.0,0.41400895]
[1752452239822,0.74759566,118980.0,118970.0,0.19204]
[1752452240039,0.74759566,118980.0,118970.0,0.23192]
[1752452240254,0.74759566,118980.0,118970.0,0.16064]
[1752452240504,0.74759566,118980.0,118970.0,0.033]
[1752452240723,0.74859566,118980.0,118970.0,0.20060369]
[1752452241170,0.74859566,118980.0,118970.0,0.07296369]
[1752452241394,0.7824516,118980.0,118970.0,0.20060369]
[1752452242054,0.78245314,118980.0,118970.0,0.19560369]
[1752452243160,0.78245314,118980.0,118970.0,0.22790369]
[1752452243344,0.78245314,118980.0,118970.0,0.42930369]
[1752452243939,0.79917399,118980.0,118970.0,0.27366369]
[1752452244136,0.79917399,118980.0,118970.0,0.20148369]
[1752452244321,0.82937399,118980.0,118970.0,0.20148369]
[1752452244511,0.82937399,118980.0,118970.0,0.32912369]
[1752452244718,0.91480392,118980.0,118970.0,0.32912369]
[1752452244930,0.91480392,118980.0,118940.0,0.07058]
[1752452244931,0.82937399,118980.0,118940.0,0.07058]
[1752452245195,0.45426942,118970.0,118960.0,0.2014]
[1752452245405,0.55735767,118970.0,118960.0,0.2014]
[1752452245725,0.80735767,118970.0,118960.0,0.2014]
[1752452246135,0.83256467,118970.0,118960.0,0.2014]
[1752452246365,0.83256467,118970.0,118960.0,0.32908]
[1752452246366,1.13707362,118970.0,118960.0,0.32908]
[1752452247195,1.13038735,118970.0,118960.0,0.32908]
[1752452248451,1.13238735,118970.0,118960.0,0.32908]
[1752452249319,1.21781728,118970.0,118960.0,0.32908]
[1752452249546,1.22566533,118970.0,118960.0,0.32908]
[1752452249770,0.01454085,118950.0,118940.0,0.0030837]
[1752452249977,0.75546178,118950.0,118940.0,0.3321237]
[1752452250214,0.75764178,118950.0,118940.0,0.3291237]
[1752452250601,0.76717246,118950.0,118940.0,0.3291237]
[1752452250873,0.78286566,118950.0,118940.0,0.3291237]
[1752452251094,0.78286566,118950.0,118940.0,0.3301237]
[1752452251320,0.78286559,118950.0,118940.0,0.3301237]
[1752452251537,0.75765659,118950.0,118940.0,0.3301237]
[1752452251980,0.75765659,118950.0,118940.0,0.3311237]
[1752452252186,0.45765391,118950.0,118940.0,0.3311237]
[1752452252597,0.45765391,118950.0,118940.0,0.3633237]
[1752452253052,0.45765391,118950.0,118940.0,0.3942237]
[1752452257406,0.44196078,118950.0,118940.0,0.3942237]
[1752452259235,0.43997078,118950.0,118940.0,0.4394437]
[1752452262016,0.42542993,118950.0,118940.0,0.4394437]
[1752452262429,0.42542993,118950.0,118940.0,0.73726638]
[1752452262838,0.42542993,118950.0,118940.0,0.4394437]
[1752452263244,0.44110007,118950.0,118940.0,0.4394437]
[1752452263450,0.42542993,118950.0,118940.0,0.4394437]
[1752452266151,0.42542993,118950.0,118940.0,0.7351437]
[1752452268847,0.42542993,118950.0,118940.0,1.03296638]
[1752452269148,0.42542993,118950.0,118940.0,1.0399531]
[1752452269536,0.34,118950.0,118940.0,1.0399531]
[1752452272619,0.34,118950.0,118940.0,0.7351437]
[1752452272852,0.44195078,118950.0,118940.0,0.6021637]
[1752452273006,0.44195078,118950.0,118940.0,0.7351437]
[1752452273207,0.42542993,118950.0,118940.0,1.0399531]
[1752452274267,0.42542993,118950.0,118940.0,0.9123131]
[1752452274460,0.42542993,118950.0,118940.0,1.0399531]
[1752452275100,0.42542993,118950.0,118940.0,0.7351437]
[1752452275301,0.42542993,118950.0,118940.0,1.0399531]
[1752452278458,0.42542993,118950.0,118940.0,0.9123131]
[1752452278653,0.42542993,118950.0,118940.0,1.0400331]
[1752452283581,0.34,118950.0,118940.0,1.0400331]
[1752452284979,0.42542993,118950.0,118940.0,0.7351837]
[1752452285206,0.42542993,118950.0,118940.0,0.5676237]
[1752452285418,0.42740993,118950.0,118940.0,0.7298437]
[1752452286498,0.42542993,118950.0,118940.0,1.0398331]
[1752452288295,0.34,118950.0,118940.0,1.0398331]
[1752452292176,0.06734857,118970.0,118960.0,0.10558]
[1752452292382,0.06734857,118970.0,118960.0,0.5433294]
[1752452293327,0.37385594,118980.0,118970.0,0.10328]
[1752452293543,0.11928587,118980.0,118970.0,0.5378494]
[1752452293759,0.11928587,118980.0,118970.0,0.5409894]
[1752452294605,0.11928587,118980.0,118970.0,0.23618]
[1752452294822,0.11928587,118980.0,118970.0,0.5409894]
[1752452295727,0.11928587,118980.0,118970.0,0.8366894]
[1752452295956,0.11928587,118980.0,118970.0,0.53204]
[1752452296169,0.11928587,118980.0,118970.0,0.7089694]
[1752452296386,0.11928587,118980.0,118970.0,0.53204]
[1752452296602,0.12426587,118980.0,118970.0,0.53204]
[1752452296813,0.12228587,118980.0,118970.0,0.53204]
[1752452297909,0.12228587,118980.0,118970.0,0.8368494]
[1752452300592,0.03685594,118980.0,118970.0,0.8368494]
[1752452300816,0.003,118980.0,118970.0,0.92227933]
[1752452301028,0.025197,119000.0,118990.0,0.10088]
[1752452301244,0.0188685,119030.0,119010.0,0.061]
[1752452301464,0.08749993,119020.0,119010.0,0.061]
[1752452301686,0.08749993,119020.0,119010.0,0.39248]
[1752452301890,0.11573725,119020.0,119010.0,0.39248]
[1752452302321,0.11586272,119020.0,119010.0,0.39248]
[1752452302956,0.11886272,119020.0,119010.0,0.39248]
[1752452303647,0.11886272,119020.0,119010.0,0.43236]
[1752452303867,0.11679272,119020.0,119010.0,0.4355]
[1752452304080,0.03136279,119020.0,119010.0,0.4355]
[1752452305441,0.03043279,119020.0,119010.0,0.4355]
[1752452305652,0.03043279,119020.0,119010.0,0.43236]
[1752452305861,0.02836279,119020.0,119010.0,0.4355]
[1752452307514,0.02836279,119020.0,119010.0,0.7312]
[1752452315303,0.04398058,119020.0,119010.0,0.7312]
[1752452315725,0.02836279,119020.0,119010.0,0.7312]
[1752452315937,0.04398034,119020.0,119010.0,0.7312]
[1752452317591,0.43205883,119020.0,119010.0,0.59798]
[1752452317794,0.82461242,119020.0,119010.0,0.32932]
[1752452317995,0.84980542,119020.0,119010.0,0.32932]
[1752452318213,0.84980615,119020.0,119010.0,0.32932]
[1752452318485,0.52217759,119020.0,119010.0,0.32932]
[1752452318699,0.52217759,119020.0,119010.0,0.36032]
[1752452318919,0.52217759,119020.0,119010.0,0.32932]
[1752452319371,0.84980615,119020.0,119010.0,0.32932]
[1752452319782,0.81960615,119020.0,119010.0,0.32932]
[1752452320411,0.52217759,119020.0,119010.0,0.32932]
[1752452321080,0.52217759,119020.0,119010.0,0.4313]
[1752452322372,0.49698459,119020.0,119010.0,0.4313]
[1752452322591,0.49702245,119020.0,119010.0,0.4313]
[1752452323454,0.49386245,119020.0,119010.0,0.4313]
[1752452323671,0.48604898,119020.0,119010.0,0.4313]
[1752452323883,0.49388228,119020.0,119010.0,0.4313]
[1752452324304,0.49704228,119020.0,119010.0,0.4313]
[1752452324847,0.4970441,119020.0,119010.0,0.4313]
[1752452325062,0.80163095,119020.0,119010.0,0.4313]
[1752452325285,0.82682295,119020.0,119010.0,0.4313]
[1752452326868,0.82682697,119020.0,119010.0,0.4313]
[1752452330859,0.82682697,119020.0,119010.0,0.2014]
[1752452331072,0.85702697,119020.0,119010.0,0.32964]
[1752452331313,0.85702697,119020.0,119010.0,0.2014]
[1752452331520,0.85706189,119020.0,119010.0,0.32968]
[1752452332506,0.83353242,119020.0,119010.0,0.32968]
[1752452332716,1.16165677,119020.0,119010.0,0.32968]
[1752452333152,1.16165696,119020.0,119010.0,0.32968]
[1752452333508,0.85707011,119020.0,119010.0,0.32968]
[1752452333933,0.85807011,119020.0,119010.0,0.32968]
[1752452334547,0.34,119010.0,119000.0,0.20136]
[1752452334749,0.78897447,119010.0,119000.0,0.20136]
[1752452335752,1.09356132,119010.0,119000.0,0.32964]
[1752452336498,0.78897447,119010.0,119000.0,0.32964]
[1752452337309,0.79197447,119010.0,119000.0,0.32964]
[1752452337683,0.81757331,119010.0,119000.0,0.32964]
[1752452338076,0.84276931,119010.0,119000.0,0.32964]
[1752452338290,1.14735616,119010.0,119000.0,0.32964]
[1752452338750,0.34,118990.0,118980.0,0.20136]
[1752452338968,0.77796845,118990.0,118980.0,0.32964]
[1752452339142,0.78112845,118990.0,118980.0,0.32964]
[1752452339936,0.80633045,118990.0,118980.0,0.32964]
[1752452340565,0.8141714,118990.0,118980.0,0.32964]
[1752452340971,0.81416209,118990.0,118980.0,0.32964]
[1752452341373,0.79847988,118990.0,118980.0,0.32964]
[1752452341709,0.81416328,118990.0,118960.0,0.10278]
[1752452341924,0.47310078,118980.0,118970.0,0.20136]
[1752452342125,0.79539103,118980.0,118970.0,0.20136]
[1752452342326,1.1820224,118980.0,118960.0,0.20136]
[1752452342494,0.74748763,118970.0,118960.0,0.20136]
[1752452342706,0.76519103,118970.0,118960.0,0.20136]
[1752452342906,0.76519103,118970.0,118960.0,0.32964]
[1752452343112,0.78939603,118970.0,118960.0,0.33164]
[1752452344004,0.48480918,118970.0,118960.0,0.23446]
[1752452344155,0.78646603,118970.0,118960.0,0.39424]
[1752452344376,0.78646603,118970.0,118960.0,0.39218]
[1752452344818,0.75422178,118970.0,118960.0,0.43736]
[1752452345245,0.75917178,118970.0,118960.0,0.39218]
[1752452345449,0.75917178,118970.0,118960.0,0.43206]
[1752452345600,0.77371263,118970.0,118960.0,0.43206]
[1752452345803,0.78938065,118970.0,118960.0,0.36078]
[1752452346044,0.79238065,118970.0,118960.0,0.36078]
[1752452346503,0.78938065,118970.0,118960.0,0.36078]
[1752452346928,0.79138065,118970.0,118960.0,0.36078]
[1752452348431,0.79138065,118970.0,118960.0,0.39188]
[1752452348643,0.78845065,118970.0,118960.0,0.39394]
[1752452349101,0.78844722,118970.0,118960.0,0.39394]
[1752452349639,0.48184037,118970.0,118960.0,0.43706]
[1752452349856,0.78642722,118970.0,118960.0,0.43706]
[1752452350060,0.10309452,118970.0,118960.0,0.43706]
[1752452350267,0.08742993,118970.0,118960.0,0.43706]
[1752452351944,0.58742993,118970.0,118960.0,0.43706]
[1752452352165,0.08742993,118970.0,118960.0,0.43706]
[1752452357598,0.10308532,118970.0,118960.0,0.43706]
[1752452357824,0.10308532,118970.0,118960.0,0.73276]
[1752452358098,0.08742993,118970.0,118960.0,0.73276]
[1752452358629,0.10308532,118970.0,118960.0,0.73276]
[1752452359386,0.10310491,118970.0,118960.0,0.73276]
[1752452359814,0.40971176,118970.0,118960.0,0.73276]
[1752452360023,0.10310491,118970.0,118960.0,0.73276]
[1752452360229,0.08742993,118970.0,118960.0,0.73276]
[1752452360442,0.10310584,118970.0,118960.0,0.73276]
[1752452360989,0.40769269,118970.0,118960.0,0.73276]
[1752452362243,0.08742993,118970.0,118960.0,0.73276]
[1752452362444,0.10311487,118970.0,118960.0,0.73276]
[1752452363638,0.10311487,118970.0,118960.0,0.74164685]
[1752452364737,0.10311487,118970.0,118960.0,0.43706]
[1752452364986,0.002,118970.0,118960.0,1.0462337]
[1752452365402,0.002,118970.0,118960.0,0.74164685]
[1752452365639,0.002,118970.0,118960.0,1.3419337]
[1752452365854,0.01569322,119000.0,118970.0,0.0659]
[1752452366068,0.44117289,119000.0,118990.0,0.06216]
[1752452366290,0.44901964,119000.0,118990.0,0.06216]
[1752452366509,0.44901964,119000.0,118990.0,0.0654]
[1752452367335,0.44117289,119000.0,118990.0,0.0654]
[1752452367789,0.44417289,119000.0,118990.0,0.0654]
[1752452368022,0.42847967,119000.0,118990.0,0.0654]
[1752452368232,0.4441747,119000.0,118990.0,0.0654]
[1752452370480,0.4441747,119000.0,118990.0,0.1936]
[1752452371023,0.4441747,119000.0,118990.0,0.23348]
[1752452371321,0.75370155,119000.0,118990.0,0.22814]
[1752452371941,0.75370155,119000.0,118990.0,0.18826]
[1752452372144,0.7682424,119000.0,118990.0,0.03988]
[1752452372356,0.7682424,119000.0,118990.0,0.16824]
[1752452372776,0.7682424,119000.0,118990.0,0.12836]
[1752452372979,1.08622925,119000.0,118990.0,0.12836]
[1752452373200,0.35454085,118990.0,118970.0,0.10458]
[1752452373405,0.39495678,118980.0,118970.0,0.10458]
[1752452374060,0.39495678,118980.0,118970.0,0.03988]
[1752452374281,0.41063981,118980.0,118970.0,0.16824]
[1752452374525,0.39495678,118980.0,118970.0,0.16824]
[1752452374689,0.765181,118980.0,118970.0,0.12836]
[1752452375103,0.790384,118980.0,118970.0,0.12836]
[1752452376095,0.48579715,118980.0,118970.0,0.12836]
[1752452376292,0.790384,118980.0,118970.0,0.12836]
[1752452376731,0.79038598,118980.0,118970.0,0.12836]
[1752452377135,0.48579913,118980.0,118970.0,0.12836]
[1752452377332,0.79038598,118980.0,118970.0,0.16126]
[1752452377896,0.79038598,118980.0,118970.0,0.20114]
[1752452378110,0.45766613,118980.0,118970.0,0.23394]
[1752452379203,0.76225298,118980.0,118970.0,0.23394]
[1752452379630,0.76518298,118980.0,118970.0,0.23394]
[1752452381786,0.76518298,118980.0,118970.0,0.16824]
[1752452382252,0.76518298,118980.0,118970.0,0.12836]
[1752452384479,0.79038498,118980.0,118970.0,0.12836]
[1752452385480,0.79038817,118980.0,118970.0,0.12836]
[1752452387608,0.77469963,118980.0,118970.0,0.12836]
[1752452392207,0.34,118970.0,118960.0,0.24124]
[1752452392420,0.74949763,118970.0,118960.0,0.32988]
[1752452393051,0.77470263,118970.0,118960.0,0.20136]
[1752452393259,0.77470263,118970.0,118960.0,0.32988]
[1752452394176,0.79338633,118970.0,118960.0,0.32988]
[1752452394635,0.79338368,118970.0,118960.0,0.32988]
[1752452398299,0.01454085,118960.0,118950.0,0.20144]
[1752452398507,1.08428448,118960.0,118950.0,0.20144]
[1752452398714,0.35454085,118950.0,118940.0,0.20144]
[1752452398913,0.74949763,118950.0,118940.0,0.20144]
[1752452399121,0.74949763,118950.0,118940.0,0.23194]
[1752452399499,0.74954734,118950.0,118940.0,0.36038]
[1752452399904,0.77475534,118950.0,118940.0,0.36038]
[1752452400352,0.47016849,118950.0,118940.0,0.36038]
[1752452400555,0.76523727,118950.0,118940.0,0.39128]
[1752452400757,0.74954734,118950.0,118940.0,0.39128]
[1752452401548,0.76524334,118950.0,118940.0,0.39128]
[1752452401759,0.74954734,118950.0,118940.0,0.39128]
[1752452402132,0.76523923,118950.0,118940.0,0.39128]
[1752452402327,0.76523978,118950.0,118940.0,0.39128]
[1752452402715,0.79044878,118950.0,118940.0,0.39128]
[1752452402949,0.01454085,118940.0,118930.0,0.20144]
[1752452403201,0.74975763,118940.0,118930.0,0.32992]
[1752452403975,0.34,118930.0,118920.0,0.23404]
[1752452404228,0.01454085,118920.0,118910.0,0.0506]
[1752452404470,0.74975763,118920.0,118910.0,0.0826]
[1752452404965,0.78563002,118920.0,118910.0,0.0826]
[1752452405209,0.78563002,118920.0,118910.0,0.21112]
[1752452405441,0.78563002,118920.0,118910.0,0.41256]
[1752452406366,0.78763002,118920.0,118910.0,0.41256]
[1752452406573,0.80330661,118920.0,118910.0,0.41256]